bitfinex/quotes_SOLUSD_20250417
["timestamp","ask_amount","ask_price","bid_price","bid_amount"]
[1744870003606,1.5853,133.57,133.52,18.97925226]
[1744870003607,20.56455226,133.57,133.52,18.97925226]
[1744870004317,84.433,133.61,133.56,18.97925226]
[1744870004482,0.03,133.61,133.6,18.97925226]
[1744870004690,7.51451933,133.61,133.58,18.97925226]
[1744870004996,7.51451933,133.61,133.57,18.97925226]
[1744870005387,26.49377159,133.61,133.57,18.97925226]
[1744870006011,18.97925226,133.6,133.55,34.87925226]
[1744870006505,18.97925226,133.6,133.56,18.97925226]
[1744870007007,18.97925226,133.6,133.55,15.9]
[1744870007209,7.48559023,133.59,133.56,18.97925226]
[1744870007707,7.48517615,133.6,133.56,18.97925226]
[1744870007913,26.46442841,133.6,133.56,18.97925226]
[1744870008098,26.46442841,133.6,133.55,18.97925226]
[1744870008293,26.46442841,133.6,133.56,18.97925226]
[1744870009311,0.03,133.61,133.57,18.97925226]
[1744870009609,0.03,133.61,133.58,18.97925226]
[1744870010911,0.03,133.61,133.6,18.97925226]
[1744870013090,0.03,133.61,133.57,7.48651868]
[1744870013411,0.03,133.61,133.56,68.03674738]
[1744870013710,0.03,133.61,133.58,18.97925226]
[1744870013889,19.00925226,133.61,133.57,18.97925226]
[1744870014301,19.00925226,133.61,133.56,15.9]
[1744870014491,19.00925226,133.61,133.57,18.97925226]
[1744870014697,0.03,133.61,133.59,18.97925226]
[1744870014917,0.03,133.61,133.58,18.97925226]
[1744870015212,0.03,133.61,133.57,18.97925226]
[1744870015408,19.00925226,133.61,133.57,18.97925226]
[1744870015614,19.00925226,133.61,133.53,44.64964886]
[1744870015800,19.00925226,133.61,133.57,18.97925226]
[1744870016494,26.49417741,133.61,133.57,18.97925226]
[1744870016816,26.49417741,133.61,133.56,18.97925226]
[1744870017313,26.49417741,133.61,133.57,18.97925226]
[1744870018215,7.51492515,133.61,133.58,18.97925226]
[1744870018417,0.03,133.61,133.58,18.97925226]
[1744870018598,0.03,133.61,133.6,18.97925226]
[1744870019116,0.03,133.61,133.56,18.64964886]
[1744870019414,0.03,133.61,133.58,18.97925226]
[1744870019805,0.03,133.61,133.59,18.97925226]
[1744870020186,0.03,133.61,133.55,7.48783227]
[1744870020387,0.03,133.61,133.54,26.13804185]
[1744870020587,0.03,133.61,133.57,18.97925226]
[1744870021010,0.03,133.61,133.54,7.48839299]
[1744870021011,19.00925226,133.61,133.56,18.97925226]
[1744870021211,18.97925226,133.6,133.56,18.97925226]
[1744870021418,19.00925226,133.61,133.53,26.13843949]
[1744870021788,19.00925226,133.61,133.57,18.97925226]
[1744870021991,19.00925226,133.61,133.56,18.97925226]
[1744870022191,0.03,133.61,133.56,18.97925226]
[1744870022410,19.00925226,133.61,133.56,18.97925226]
[1744870022621,7.5149204,133.61,133.57,18.97925226]
[1744870023117,0.03,133.61,133.58,18.97925226]
[1744870023321,0.03,133.61,133.59,18.97925226]
[1744870024599,0.03,133.61,133.58,18.97925226]
[1744870025212,19.00925226,133.61,133.57,18.97925226]
[1744870025419,0.03,133.61,133.59,18.97925226]
[1744870025616,0.03,133.61,133.6,72.50815338]
[1744870025811,0.03,133.66,133.62,26.0]
[1744870026013,0.03,133.66,133.65,18.97925226]
[1744870027229,0.03,133.66,133.65,11.81497585]
[1744870029018,0.03,133.66,133.62,11.81497585]
[1744870029215,0.03,133.66,133.65,18.91396001]
[1744870029403,0.03,133.66,133.65,53.44360887]
[1744870029602,0.03,133.66,133.65,53.72793201]
[1744870029803,0.03,133.66,133.65,159.58050291]
[1744870030231,0.03,133.69,133.68,44.64964886]
[1744870030527,0.03,133.69,133.68,86.40896403]
[1744870030830,0.03,133.69,133.68,82.76189202]
[1744870031127,0.03,133.69,133.68,82.47756888]
[1744870032334,0.03,133.69,133.68,89.95811944]
[1744870032718,0.03,133.69,133.68,90.24244258]
[1744870033430,0.03,133.72,133.69,18.933972]
[1744870033600,0.03,133.72,133.71,18.64964886]
[1744870033806,0.03,133.72,133.71,37.56360887]
[1744870034206,0.03,133.72,133.71,18.91396001]
[1744870036328,0.28432314,133.71,133.63,18.91396001]
[1744870036524,18.91396001,133.67,133.62,18.91396001]
[1744870036727,18.91396001,133.66,133.62,18.91396001]
[1744870036926,34.87396001,133.68,133.63,18.91396001]
[1744870037127,15.96,133.68,133.64,18.91396001]
[1744870037335,23.44107227,133.68,133.64,18.91396001]
[1744870037845,18.91396001,133.67,133.62,18.91396001]
[1744870038327,18.91396001,133.66,133.62,18.91396001]
[1744870038512,18.91396001,133.67,133.62,18.91396001]
[1744870039339,7.4816699,133.66,133.62,18.91396001]
[1744870039534,7.4816699,133.66,133.6,26.0]
[1744870039842,7.4816699,133.66,133.63,18.91396001]
[1744870040041,1.5371,133.72,133.65,37.56360887]
[1744870040250,1.5371,133.72,133.7,18.91396001]
[1744870040418,1.5371,133.72,133.69,18.91396001]
[1744870041036,1.5371,133.72,133.65,18.64964886]
[1744870041037,0.03,133.72,133.7,18.91396001]
[1744870041223,0.03,133.72,133.65,18.64964886]
[1744870041224,0.03,133.72,133.71,18.91396001]
[1744870044346,0.03,133.72,133.7,18.91396001]
[1744870044552,0.03,133.72,133.69,18.91396001]
[1744870046251,0.03,133.72,133.7,18.91396001]
[1744870046436,0.03,133.72,133.71,18.91396001]
[1744870046638,0.03,133.72,133.7,18.91396001]
[1744870047155,0.03,133.72,133.69,18.91396001]
[1744870047551,0.03,133.72,133.7,18.91396001]
[1744870048369,0.03,133.72,133.71,18.91396001]
[1744870049551,0.03,133.72,133.7,18.91396001]
[1744870050436,0.03,133.72,133.69,18.91396001]
[1744870050755,0.03,133.72,133.7,18.91396001]
[1744870051459,0.03,133.72,133.69,18.91396001]
[1744870051667,0.03,133.72,133.68,18.91396001]
[1744870052032,18.94396001,133.72,133.68,18.91396001]
[1744870052533,0.03,133.72,133.68,18.91396001]
[1744870054261,0.03,133.72,133.69,18.91396001]
[1744870054438,0.03,133.72,133.68,18.91396001]
[1744870054635,18.94396001,133.72,133.67,18.91396001]
[1744870054839,7.47887218,133.71,133.67,18.91396001]
[1744870055938,7.47887218,133.71,133.68,18.91396001]
[1744870056664,7.47887218,133.71,133.67,18.91396001]
[1744870058645,18.91396001,133.69,133.64,34.87396001]
[1744870059465,26.17605264,133.71,133.63,7.48317131]
[1744870059466,18.91396001,133.67,133.63,18.91396001]
[1744870059763,18.91396001,133.67,133.62,26.133408]
[1744870059935,18.91396001,133.68,133.64,18.91396001]
[1744870060137,18.91396001,133.68,133.63,18.91396001]
[1744870060562,26.39499472,133.68,133.63,18.91396001]
[1744870060755,18.91396001,133.66,133.62,18.91396001]
[1744870061249,18.91396001,133.65,133.6,15.96]
[1744870061445,18.91396001,133.65,133.6,34.87396001]
[1744870061642,1.5383,133.67,133.61,18.91396001]
[1744870061843,18.91396001,133.65,133.61,18.91396001]
[1744870062042,18.91396001,133.64,133.6,15.96]
[1744870062367,18.91396001,133.63,133.6,15.96]
[1744870062666,26.39745753,133.63,133.59,18.91396001]
[1744870062867,7.48349752,133.63,133.59,18.91396001]
[1744870063061,26.39666109,133.65,133.61,18.91396001]
[1744870063382,82.8,133.66,133.62,18.91396001]
[1744870063570,20.45226001,133.67,133.62,18.91396001]
[1744870064173,1.5383,133.67,133.63,18.91396001]
[1744870064468,20.45226001,133.67,133.63,18.91396001]
[1744870064846,9.01943309,133.67,133.63,18.91396001]
[1744870065047,7.48113309,133.67,133.63,18.91396001]
[1744870065469,26.3950931,133.67,133.63,18.91396001]
[1744870065657,18.91396001,133.64,133.58,0.063]
[1744870065837,18.91396001,133.66,133.62,18.91396001]
[1744870066260,18.91396001,133.65,133.61,18.91396001]
[1744870066469,18.91396001,133.64,133.59,18.91396001]
[1744870066763,18.91396001,133.63,133.59,18.91396001]
[1744870067167,18.91396001,133.65,133.61,18.91396001]
[1744870067373,101.71396001,133.66,133.62,18.91396001]
[1744870067671,26.3950702,133.67,133.62,18.91396001]
[1744870067872,26.39471716,133.68,133.64,18.91396001]
[1744870068255,18.91396001,133.66,133.62,18.91396001]
[1744870068461,18.91396001,133.65,133.6,18.91396001]
[1744870068967,26.3966298,133.65,133.6,18.91396001]
[1744870069275,18.91396001,133.64,133.6,18.91396001]
[1744870069975,7.48266979,133.65,133.6,18.91396001]
[1744870069976,26.3966298,133.65,133.6,18.91396001]
[1744870070178,26.3966298,133.65,133.6,26.39888457]
[1744870070481,26.3966298,133.65,133.61,18.91396001]
[1744870070668,18.91396001,133.68,133.63,18.91396001]
[1744870070888,7.48055056,133.68,133.64,18.91396001]
[1744870071873,42.11405657,133.69,133.64,26.3965977]
[1744870072178,26.39358494,133.7,133.66,18.91396001]
[1744870073175,26.39358494,133.7,133.65,18.91396001]
[1744870073378,18.91396001,133.68,133.64,18.91396001]
[1744870073676,18.91396001,133.68,133.63,18.91396001]
[1744870073873,18.91396001,133.66,133.61,49.20429809]
[1744870074080,18.91396001,133.66,133.61,42.1182581]
[1744870074256,18.91396001,133.66,133.61,34.63396001]
[1744870074457,18.91396001,133.64,133.59,86.20530777]
[1744870074683,18.91396001,133.65,133.6,18.91396001]
[1744870074891,18.91396001,133.65,133.6,26.39888892]
[1744870075081,26.39621345,133.65,133.61,18.91396001]
[1744870075486,26.39621345,133.65,133.6,18.91396001]
[1744870075879,18.91396001,133.64,133.6,18.91396001]
[1744870076584,7.48225344,133.65,133.61,18.91396001]
[1744870076585,18.91396001,133.65,133.61,18.91396001]
[1744870077081,18.91396001,133.65,133.6,26.39881547]
[1744870077391,18.91396001,133.61,133.58,26.063]
[1744870077589,18.91396001,133.62,133.58,0.063]
[1744870077895,18.91396001,133.62,133.58,26.46288139]
[1744870079193,26.39732129,133.63,133.59,18.91396001]
[1744870079489,18.91396001,133.63,133.59,18.91396001]
[1744870080084,26.39747794,133.63,133.59,18.91396001]
[1744870080489,18.91396001,133.62,133.58,26.46288139]
[1744870080789,7.48351793,133.63,133.58,26.46288139]
[1744870080790,26.39747794,133.63,133.58,26.46288139]
[1744870080990,18.91396001,133.62,133.58,0.063]
[1744870081301,18.91396001,133.62,133.58,18.97696001]
[1744870081980,18.91396001,133.6,133.58,0.063]
[1744870082173,18.91396001,133.59,133.58,0.063]
[1744870083179,26.39955024,133.59,133.58,0.063]
[1744870084473,51.50832583,133.59,133.56,0.063]
[1744870084677,37.82792002,133.57,133.54,0.063]
[1744870084894,26.40179228,133.55,133.54,0.063]
[1744870086285,26.40179228,133.55,133.5,0.063]
[1744870086286,45.12137296,133.55,133.5,0.063]
[1744870086489,18.91396001,133.53,133.5,0.063]
[1744870086806,101.71396001,133.54,133.5,0.063]
[1744870087103,109.20253175,133.54,133.5,0.063]
[1744870087906,18.91396001,133.51,133.5,0.063]
[1744870088781,0.28432314,133.49,133.44,0.063]
[1744870089098,18.91396001,133.45,133.44,0.063]
[1744870089485,26.40740324,133.45,133.44,0.063]
[1744870089884,18.91396001,133.45,133.44,0.063]
[1744870090809,18.91396001,133.46,133.44,0.063]
[1744870091904,18.91396001,133.45,133.44,0.063]
[1744870093084,26.40740324,133.45,133.44,0.063]
[1744870093286,18.91396001,133.45,133.44,0.063]
[1744870093601,18.91396001,133.46,133.44,0.063]
[1744870093807,18.91396001,133.47,133.44,0.063]
[1744870094178,82.8,133.49,133.44,18.97696001]
[1744870094383,101.71396001,133.49,133.45,18.91396001]
[1744870094816,20.31591378,133.54,133.48,18.91396001]
[1744870094817,84.3939,133.54,133.48,18.91396001]
[1744870095021,84.3939,133.54,133.45,26.0]
[1744870095022,82.8,133.54,133.5,18.91396001]
[1744870095304,82.8,133.54,133.51,18.91396001]
[1744870095494,18.91396001,133.55,133.51,18.91396001]
[1744870095907,18.91396001,133.55,133.5,18.91396001]
[1744870095908,26.40185643,133.55,133.5,18.91396001]
[1744870096110,26.40185643,133.55,133.48,7.49175906]
[1744870096111,18.91396001,133.53,133.48,18.91396001]
[1744870096301,18.91396001,133.52,133.48,18.91396001]
[1744870096486,18.91396001,133.53,133.48,18.91396001]
[1744870096686,18.91396001,133.52,133.48,18.91396001]
[1744870097310,18.91396001,133.52,133.48,26.40549045]
[1744870097610,18.91396001,133.49,133.44,34.65696001]
[1744870097815,18.91396001,133.47,133.44,0.063]
[1744870097996,18.91396001,133.45,133.44,0.063]
[1744870098390,18.91396001,133.46,133.44,0.063]
[1744870098617,82.8,133.48,133.45,18.91396001]
[1744870098919,18.91396001,133.49,133.45,18.91396001]
[1744870099102,18.91396001,133.49,133.44,26.47084558]
[1744870099506,18.91396001,133.46,133.44,0.063]
[1744870099816,18.91396001,133.47,133.44,0.063]
[1744870100013,18.91396001,133.48,133.44,0.063]
[1744870100222,18.91396001,133.48,133.44,7.55687377]
[1744870100920,18.91396001,133.48,133.44,26.47083378]
[1744870101414,101.71396001,133.49,133.44,26.47083378]
[1744870101793,101.71396001,133.49,133.45,18.91396001]
[1744870101998,101.71396001,133.53,133.48,18.91396001]
[1744870102417,82.8,133.53,133.5,18.91396001]
[1744870102800,34.59396001,133.54,133.5,18.91396001]
[1744870103320,34.59396001,133.54,133.49,18.91396001]
[1744870103620,34.59396001,133.54,133.49,26.40502013]
[1744870104816,15.68,133.54,133.49,26.40502013]
[1744870105018,15.68,133.54,133.5,18.91396001]
[1744870105019,34.59396001,133.54,133.5,18.91396001]
[1744870106121,34.59396001,133.54,133.5,26.40444369]
[1744870106723,34.59396001,133.54,133.5,18.91396001]
[1744870108220,18.91396001,133.53,133.47,6.6344]
[1744870108525,18.91396001,133.51,133.47,6.6344]
[1744870108816,18.91396001,133.48,133.45,1.5369]
[1744870109223,18.91396001,133.48,133.45,9.03029554]
[1744870109521,18.91396001,133.49,133.45,1.5369]
[1744870110020,18.91396001,133.49,133.45,20.45086001]
[1744870110417,18.91396001,133.49,133.44,0.063]
[1744870110418,18.91396001,133.47,133.44,0.063]
[1744870111122,18.91396001,133.46,133.44,0.063]
[1744870113444,19.19828315,133.45,133.44,0.063]
[1744870114423,18.91396001,133.45,133.44,0.063]
[1744870115225,26.40740324,133.45,133.44,0.063]
[1744870115426,7.49344323,133.45,133.44,0.063]
[1744870115631,26.40740324,133.45,133.44,0.063]
[1744870116236,0.28432314,133.44,133.42,0.063]
[1744870116420,18.91396001,133.43,133.42,0.063]
[1744870117122,19.05612158,133.43,133.42,0.063]
[1744870117322,7.63785154,133.41,133.38,0.063]
[1744870117521,18.91396001,133.4,133.38,0.063]
[1744870118353,18.91396001,133.39,133.38,0.063]
[1744870119330,26.41077386,133.39,133.38,0.063]
[1744870119944,18.91396001,133.39,133.38,0.063]
[1744870120452,82.8,133.42,133.38,0.063]
[1744870120638,101.71396001,133.42,133.38,0.063]
[1744870120955,18.91396001,133.39,133.38,0.063]
[1744870121339,26.41077386,133.39,133.38,0.063]
[1744870123154,45.34474586,133.39,133.38,0.063]
[1744870125153,61.04474586,133.39,133.38,0.063]
[1744870126040,42.395097,133.39,133.38,0.063]
[1744870126239,61.04474586,133.39,133.38,0.063]
[1744870128259,79.95870587,133.39,133.38,0.063]
[1744870128768,26.0,133.37,133.36,0.063]
[1744870128933,26.0,133.37,133.3,0.063]
[1744870128934,0.28432314,133.36,133.3,0.063]
[1744870129142,18.91396001,133.31,133.3,0.063]
[1744870129340,18.91396001,133.32,133.3,0.063]
[1744870129859,18.91396001,133.31,133.3,0.063]
[1744870130739,26.41527273,133.31,133.3,0.063]
[1744870131057,45.34924473,133.31,133.3,0.063]
[1744870131365,0.28432314,133.3,133.28,0.063]
[1744870131551,53.56793201,133.29,133.28,0.063]
[1744870132653,61.0703703,133.29,133.28,0.063]
[1744870134953,7.78676143,133.29,133.28,0.063]
[1744870135270,250.24,133.39,133.28,26.59476001]
[1744870135471,16.38,133.39,133.34,18.91396001]
[1744870135768,18.91396001,133.37,133.31,26.0]
[1744870135948,18.91396001,133.35,133.3,18.91396001]
[1744870136140,18.91396001,133.34,133.29,44.91396001]
[1744870136347,18.91396001,133.35,133.3,18.91396001]
[1744870136542,18.91396001,133.36,133.31,18.91396001]
[1744870137775,16.38,133.41,133.35,18.91396001]
[1744870138065,35.29396001,133.41,133.36,18.91396001]
[1744870138241,16.38,133.41,133.37,18.91396001]
[1744870138441,35.29396001,133.41,133.37,18.91396001]
[1744870138666,16.38,133.41,133.37,18.91396001]
[1744870139075,18.91396001,133.4,133.35,44.91396001]
[1744870139249,18.91396001,133.38,133.33,18.91396001]
[1744870139765,18.91396001,133.36,133.3,7.50134098]
[1744870139946,18.91396001,133.35,133.31,18.91396001]
[1744870140145,18.91396001,133.36,133.31,18.91396001]
[1744870140447,18.91396001,133.35,133.3,52.41530099]
[1744870140754,18.91396001,133.35,133.31,0.063]
[1744870142275,18.91396001,133.34,133.31,0.063]
[1744870142852,16.38,133.36,133.33,18.91396001]
[1744870143054,16.38,133.36,133.32,26.0]
[1744870143055,16.38,133.36,133.35,18.91396001]
[1744870143256,18.91396001,133.38,133.34,18.91396001]
[1744870143463,18.91396001,133.39,133.34,18.91396001]
[1744870143752,101.71396001,133.39,133.34,18.91396001]
[1744870144056,82.8,133.39,133.35,18.91396001]
[1744870145081,101.71396001,133.39,133.35,26.41298836]
[1744870145474,82.8,133.39,133.35,26.41298836]
[1744870145781,18.91396001,133.36,133.31,0.063]
[1744870145962,18.91396001,133.35,133.31,18.97696001]
[1744870146275,18.91396001,133.36,133.32,18.91396001]
[1744870146475,18.91396001,133.39,133.34,18.91396001]
[1744870146679,26.41040265,133.4,133.36,18.91396001]
[1744870146877,26.41040265,133.4,133.35,18.91396001]
[1744870147073,18.91396001,133.4,133.35,26.41298576]
[1744870147279,16.38,133.41,133.37,18.91396001]
[1744870147574,16.38,133.41,133.38,18.91396001]
[1744870147780,35.29396001,133.41,133.37,18.91396001]
[1744870148164,42.78984643,133.41,133.37,18.91396001]
[1744870148366,42.78984643,133.41,133.36,18.91396001]
[1744870148583,18.91396001,133.39,133.35,18.91396001]
[1744870148798,18.91396001,133.4,133.35,18.91396001]
[1744870149265,23.87588642,133.41,133.36,18.91396001]
[1744870149458,18.91396001,133.4,133.36,18.91396001]
[1744870150282,42.78984643,133.41,133.36,18.91396001]
[1744870150584,16.38,133.41,133.37,18.91396001]
[1744870150880,7.49344323,133.45,133.4,18.91396001]
[1744870151096,16.41,133.48,133.44,18.91396001]
[1744870151097,118.12396001,133.48,133.44,18.91396001]
[1744870151268,125.61587183,133.48,133.42,18.91396001]
[1744870151455,18.91396001,133.46,133.41,18.91396001]
[1744870152165,18.91396001,133.47,133.42,18.91396001]
[1744870152680,26.40680863,133.47,133.42,18.91396001]
[1744870152866,0.03,133.46,133.42,18.91396001]
[1744870155184,26.4372487,133.46,133.42,18.91396001]
[1744870155391,18.91396001,133.44,133.36,7.5591]
[1744870155588,18.91396001,133.44,133.39,18.91396001]
[1744870155891,101.71396001,133.45,133.4,18.91396001]
[1744870156268,82.8,133.45,133.4,18.91396001]
[1744870156570,82.8,133.45,133.43,18.91396001]
[1744870156778,7.52291692,133.46,133.42,18.91396001]
[1744870157284,7.52291692,133.46,133.43,18.91396001]
[1744870157689,0.03,133.46,133.44,18.91396001]
[1744870158078,0.03,133.46,133.43,18.91396001]
[1744870159893,0.03,133.46,133.42,18.91396001]
[1744870160280,0.03,133.46,133.43,18.91396001]
[1744870160886,0.03,133.46,133.44,18.91396001]
[1744870161090,0.03,133.46,133.45,18.91396001]
[1744870162199,0.03,133.46,133.45,71.0570521]
[1744870162702,0.03,133.46,133.45,44.91396001]
[1744870162996,0.03,133.46,133.45,71.0570521]
[1744870163868,0.03,133.48,133.47,26.0]
[1744870164094,0.03,133.48,133.47,44.91396001]
[1744870164687,0.03,133.48,133.47,63.56360887]
[1744870165203,0.03,133.48,133.47,71.05592924]
[1744870167181,0.03,133.54,133.51,32.2847]
[1744870167380,0.03,133.54,133.53,18.91396001]
[1744870167881,0.03,133.54,133.51,33.8092]
[1744870168086,0.03,133.54,133.51,44.91396001]
[1744870169508,18.94396001,133.54,133.5,18.91396001]
[1744870169674,18.91396001,133.53,133.49,18.91396001]
[1744870170075,18.94396001,133.54,133.5,18.91396001]
[1744870170371,0.03,133.54,133.51,18.91396001]
[1744870170579,0.03,133.54,133.5,18.91396001]
[1744870170779,18.94396001,133.54,133.49,18.91396001]
[1744870170993,18.91396001,133.53,133.48,44.91396001]
[1744870172187,18.91396001,133.49,133.42,7.8146]
[1744870172390,18.91396001,133.44,133.39,25.17086001]
[1744870172617,18.91396001,133.4,133.34,1.5577]
[1744870172775,18.91396001,133.38,133.33,25.17086001]
[1744870172979,18.91396001,133.36,133.31,18.97696001]
[1744870173196,18.91396001,133.33,133.31,0.063]
[1744870173718,18.91396001,133.32,133.31,0.063]
[1744870174210,56.76189202,133.32,133.31,1e-08]
[1744870174382,0.28432314,133.27,133.25,0.063]
[1744870174577,99.16189202,133.26,133.25,1e-08]
[1744870174818,0.28432314,133.25,133.23,1e-08]
[1744870175104,37.56360887,133.24,133.23,1e-08]
[1744870176016,19.19828315,133.24,133.23,1e-08]
[1744870176208,37.84793201,133.24,133.23,1e-08]
[1744870176513,18.933972,133.23,133.2,0.063]
[1744870176681,18.91396001,133.21,133.2,0.063]
[1744870176882,7.5001875,133.33,133.23,26.0]
[1744870177088,18.91396001,133.32,133.27,18.91396001]
[1744870177394,28.08736549,133.32,133.27,28.08736549]
[1744870177714,28.08736549,133.33,133.28,28.08736549]
[1744870177886,28.08736549,133.32,133.28,28.08736549]
[1744870178513,28.08736549,133.31,133.23,42.42]
[1744870178817,28.08736549,133.31,133.27,28.08736549]
[1744870178999,44.50736549,133.33,133.28,28.08736549]
[1744870179484,44.50736549,133.33,133.29,28.08736549]
[1744870179684,16.42,133.33,133.29,28.08736549]
[1744870179895,16.42,133.37,133.31,28.08736549]
[1744870180102,28.08736549,133.36,133.31,28.08736549]
[1744870180715,28.08736549,133.36,133.32,28.08736549]
[1744870180908,28.08736549,133.36,133.31,28.08736549]
[1744870181107,28.08736549,133.35,133.26,7.50412707]
[1744870181418,28.08736549,133.33,133.26,26.0]
[1744870181628,28.08736549,133.33,133.28,28.08736549]
[1744870181798,18.64964886,133.4,133.32,28.08736549]
[1744870182127,28.08736549,133.39,133.34,28.08736549]
[1744870182798,28.08736549,133.38,133.34,28.08736549]
[1744870184319,28.37168863,133.39,133.34,28.08736549]
[1744870185329,28.37168863,133.39,133.35,28.08736549]
[1744870185533,0.28432314,133.39,133.35,28.08736549]
[1744870186094,28.08736549,133.38,133.29,18.64964886]
[1744870186300,28.08736549,133.38,133.33,28.08736549]
[1744870186727,0.28432314,133.4,133.35,28.08736549]
[1744870187023,28.08736549,133.39,133.35,28.08736549]
[1744870187332,28.08736549,133.39,133.34,28.08736549]
[1744870188235,28.08736549,133.38,133.34,28.08736549]
[1744870189114,28.08736549,133.39,133.34,35.58686348]
[1744870189314,28.08736549,133.39,133.34,28.08736549]
[1744870189711,82.8,133.48,133.38,28.08736549]
[1744870189925,28.08736549,133.41,133.36,28.08736549]
[1744870190329,28.08736549,133.41,133.36,35.58558748]
[1744870190821,54.08736549,133.44,133.39,28.08736549]
[1744870191650,54.08736549,133.44,133.36,7.49822199]
[1744870191651,82.8,133.53,133.43,54.08736549]
[1744870191808,28.08736549,133.51,133.46,28.08736549]
[1744870192237,118.37729728,133.52,133.47,28.08736549]
[1744870192824,28.08736549,133.51,133.47,28.08736549]
[1744870193236,28.08736549,133.5,133.46,28.08736549]
[1744870194637,28.08736549,133.5,133.45,28.08736549]
[1744870194850,28.08736549,133.48,133.43,54.08736549]
[1744870195034,28.08736549,133.47,133.42,28.08736549]
[1744870196343,35.57981046,133.47,133.42,28.08736549]
[1744870196852,18.933972,133.42,133.31,6.2801]
[1744870197143,18.99633235,133.38,133.33,18.99633235]
[1744870197528,18.99633235,133.38,133.34,18.99633235]
[1744870198042,18.99633235,133.37,133.31,6.2801]
[1744870198220,18.99633235,133.37,133.33,18.99633235]
[1744870199040,18.99633235,133.37,133.32,18.99633235]
[1744870199248,28.06774488,133.37,133.32,28.06774488]
[1744870199552,28.06774488,133.37,133.33,28.06774488]
[1744870199731,35.56536151,133.38,133.34,28.06774488]
[1744870199935,35.56536151,133.38,133.33,28.06774488]
[1744870200861,35.56458023,133.39,133.34,28.06774488]
[1744870201145,35.56458023,133.39,133.35,28.06774488]
[1744870201551,35.56413717,133.4,133.36,28.06774488]
[1744870201851,24.71561087,133.42,133.39,28.06774488]
[1744870202150,107.51561087,133.42,133.38,28.06774488]
[1744870203656,107.51561087,133.42,133.37,28.06774488]
[1744870203657,135.58335575,133.42,133.37,28.06774488]
[1744870204026,135.58335575,133.42,133.35,54.06774488]
[1744870204027,28.06774488,133.4,133.35,54.06774488]
[1744870204227,28.06774488,133.4,133.32,24.72031923]
[1744870204424,28.06774488,133.4,133.35,28.06774488]
[1744870205337,7.49681385,133.39,133.36,28.06774488]
[1744870205537,7.49681385,133.39,133.37,28.06774488]
[1744870205750,7.49642278,133.4,133.37,28.06774488]
[1744870206860,90.29586359,133.41,133.38,28.06774488]
[1744870207150,90.29586359,133.41,133.33,33.50004897]
[1744870207151,28.06774488,133.39,133.34,28.06774488]
[1744870207360,7.49681385,133.39,133.35,28.06774488]
[1744870207735,7.49681385,133.39,133.36,28.06774488]
[1744870207944,7.49681385,133.39,133.35,28.06774488]
[1744870208143,35.56455873,133.39,133.34,28.06774488]
[1744870208356,7.49681385,133.39,133.35,28.06774488]
[1744870209139,35.56455873,133.39,133.34,28.06774488]
[1744870210751,7.49681385,133.39,133.35,28.06774488]
[1744870211059,35.56455873,133.39,133.34,28.06774488]
[1744870212466,28.06774488,133.38,133.34,28.06774488]
[1744870212837,35.56455873,133.39,133.34,28.06774488]
[1744870213266,111.15206802,133.38,133.29,7.50232953]
[1744870213481,28.06774488,133.36,133.31,28.06774488]
[1744870214044,82.8,133.37,133.32,28.06774488]
[1744870214240,110.86774488,133.37,133.32,28.06774488]
[1744870214670,7.49850029,133.36,133.32,28.06774488]
[1744870214869,35.56624517,133.36,133.32,28.06774488]
[1744870215471,35.56624517,133.36,133.31,28.06774488]
[1744870215672,28.06774488,133.32,133.25,6.0706]
[1744870215853,28.06774488,133.33,133.26,54.06774488]
[1744870216055,28.06774488,133.33,133.29,28.06774488]
[1744870216259,28.06774488,133.34,133.29,28.06774488]
[1744870216647,7.5001875,133.33,133.29,28.06774488]
[1744870216974,7.4997951,133.34,133.32,28.06774488]
[1744870217868,7.49906261,133.35,133.32,28.06774488]
[1744870218375,7.49906261,133.35,133.28,33.50282715]
[1744870218585,7.49906261,133.35,133.31,28.06774488]
[1744870219178,7.49906261,133.35,133.32,19.00113054]
[1744870220572,7.49906261,133.35,133.31,19.00113054]
[1744870221475,82.8,133.37,133.33,19.00113054]
[1744870221682,82.8,133.37,133.34,19.00113054]
[1744870222468,90.29811365,133.37,133.34,19.00113054]
[1744870224577,144.94113054,133.4,133.35,19.00113054]
[1744870224779,144.94113054,133.4,133.36,19.00113054]
[1744870225166,7.49695104,133.39,133.35,19.00113054]